bitfinex/quotes_ETHUSD_20240928
["timestamp","ask_amount","ask_price","bid_price","bid_amount"]
[1727532559361,4.12632914,2677.3,2676.9,0.07370251]
[1727532560365,4.12632914,2677.3,2676.8,4.50152]
[1727532560529,3.73525,2677.2,2676.8,3.73572]
[1727532560958,0.39113914,2677.3,2676.8,3.73572]
[1727532561128,0.39113914,2677.3,2676.8,3.73571]
[1727532561562,4.12623914,2677.3,2676.8,3.73571]
[1727532562573,3.73546,2677.1,2676.6,0.7905]
[1727532562870,3.73546,2677.1,2676.5,6.73613]
[1727532562871,3.73553,2677.0,2676.5,6.73613]
[1727532563075,3.73553,2677.0,2676.5,3.73613]
[1727532563741,3.73568,2676.9,2676.4,3.73626]
[1727532563948,3.73546,2677.1,2676.6,3.73606]
[1727532565128,0.7679,2677.2,2676.8,3.7358]
[1727532565333,0.7679,2677.2,2676.8,4.5695073]
[1727532565534,4.50316,2677.2,2676.7,0.86521295]
[1727532565728,4.50316,2677.2,2676.7,4.60113295]
[1727532565929,4.50316,2677.2,2676.7,4.52642]
[1727532567160,4.50316,2677.2,2676.8,3.7358]
[1727532567161,0.7679,2677.2,2676.8,3.7358]
[1727532567659,4.50315,2677.2,2676.8,3.7358]
[1727532568382,0.7679,2677.2,2676.8,3.7358]
[1727532568964,4.50315,2677.2,2676.7,4.60114131]
[1727532569472,4.50315,2677.2,2676.7,4.52643]
[1727532569779,5.36608391,2677.2,2676.7,3.73593]
[1727532569950,4.50315,2677.2,2676.8,3.73579]
[1727532571276,0.39113914,2677.3,2676.9,0.0747113]
[1727532571484,0.39113914,2677.3,2677.0,3.73548]
[1727532574844,0.39113914,2677.3,2676.8,3.73579]
[1727532575044,0.39113914,2677.3,2677.0,3.7355]
[1727532576383,0.39113914,2677.3,2676.8,4.109249]
[1727532576882,0.39113914,2677.3,2676.9,3.73558]
[1727532581077,0.39113914,2677.3,2676.8,4.109249]
[1727532581078,4.12627914,2677.3,2676.8,4.109249]
[1727532581284,0.39113914,2677.3,2676.9,3.73559]
[1727532582774,0.39113914,2677.3,2676.8,4.109249]
[1727532582977,0.39113914,2677.3,2677.0,7.47102]
[1727532583177,0.39113914,2677.3,2677.0,3.73551]
[1727532587702,0.39113914,2677.3,2676.8,4.109289]
[1727532587995,4.12624914,2677.3,2676.8,7.47143]
[1727532588156,0.39113914,2677.3,2676.9,3.73564]
[1727532589292,0.39113914,2677.3,2676.9,3.73559]
[1727532590354,4.12624914,2677.3,2676.8,3.7357]
[1727532590583,4.77274941,2677.3,2676.7,0.50731522]
[1727532590797,2.33095355,2677.2,2676.7,0.50731522]
[1727532591065,7.47094,2677.1,2676.7,0.50731522]
[1727532591271,0.7601,2677.0,2676.7,0.50731522]
[1727532593078,2.33095355,2677.0,2676.7,0.50731522]
[1727532593279,6.06657355,2677.0,2676.7,0.50731522]
[1727532598952,2.33095355,2677.0,2676.7,0.50731522]
[1727532599349,0.7601,2677.0,2676.7,4.24317522]
[1727532600638,0.8171,2677.2,2676.7,0.96704831]
[1727532600845,0.8171,2677.2,2676.9,3.73553]
[1727532601046,0.8171,2677.2,2676.8,3.7357]
[1727532601247,0.8171,2677.2,2676.9,3.73566]
[1727532601561,0.8171,2677.2,2677.0,3.73551]
[1727532601718,0.39113914,2677.3,2677.0,3.73551]
[1727532601918,0.39113914,2677.3,2677.0,4.54991]
[1727532602116,0.39113914,2677.3,2677.2,3.73524]
[1727532602396,0.39113914,2677.3,2677.1,3.73538]
[1727532602553,3.73473,2677.6,2677.1,3.73538]
[1727532602855,3.73478,2677.6,2677.1,3.73529]
[1727532603357,0.8171,2677.4,2677.0,3.7355]
[1727532603514,0.8171,2677.4,2676.9,3.73562]
[1727532603718,0.8171,2677.4,2676.9,3.73558]
[1727532603953,5.30617355,2677.2,2676.7,5.01882663]
[1727532604253,5.30617355,2677.2,2676.7,4.24318522]
[1727532604458,5.30617355,2677.2,2676.7,4.24317522]
[1727532604644,3.73532,2677.2,2676.7,4.24317522]
[1727532604954,6.12303355,2677.4,2676.8,3.73574]
[1727532605160,3.73511,2677.3,2676.8,7.47146]
[1727532605325,2.38795355,2677.4,2676.9,3.73559]
[1727532605533,6.12293355,2677.4,2676.9,3.73559]
[1727532605725,7.37997798,2677.4,2676.9,3.68559]
[1727532606060,2.07414443,2677.4,2677.0,3.7355]
[1727532606269,0.8171,2677.4,2677.0,3.7355]
[1727532606625,0.8171,2677.4,2677.0,7.47094]
[1727532607065,0.8171,2677.4,2677.0,3.73544]
[1727532609267,0.8171,2677.4,2677.1,3.73538]
[1727532609795,0.8171,2677.4,2677.1,3.73527]
[1727532610433,6.12271355,2677.6,2677.1,3.73527]
[1727532610633,7.0658302,2677.6,2677.0,3.73544]
[1727532610844,3.73487,2677.5,2677.0,3.73544]
[1727532611088,7.0658302,2677.6,2677.0,7.47083]
[1727532611385,10.8006302,2677.6,2677.0,3.73539]
[1727532611968,4.85402731,2677.5,2677.0,3.73539]
[1727532612479,1.11917731,2677.5,2677.0,3.73539]
[1727532612783,2.38795355,2677.6,2677.0,3.73539]
[1727532613090,3.73482,2677.5,2677.0,3.73539]
[1727532614335,0.8171,2677.6,2677.1,3.73536]
[1727532614538,0.8171,2677.6,2677.2,3.73518]
[1727532614775,1.31138729,2677.6,2677.2,3.73518]
[1727532615580,0.39114292,2677.7,2677.3,3.7351]
[1727532615745,0.39114292,2677.7,2677.3,0.8018]
[1727532615746,4.12571292,2677.7,2677.3,0.8018]
[1727532615950,5.14811657,2677.7,2677.3,0.8018]
[1727532616568,5.14811657,2677.7,2677.3,4.53688]
[1727532616878,0.39114292,2677.7,2677.3,4.53688]
[1727532617662,0.39114292,2677.7,2677.4,3.73494]
[1727532618690,0.39114292,2677.7,2677.3,4.53689]
[1727532619286,4.12578292,2677.7,2677.3,0.8018]
[1727532619688,4.12578292,2677.7,2677.3,4.53689]
[1727532620050,0.39114292,2677.7,2677.4,3.73494]
[1727532620661,0.39114292,2677.7,2677.3,4.5369]
[1727532623886,4.53461,2677.6,2677.1,4.52388]
[1727532624193,4.53461,2677.6,2677.2,3.73522]
[1727532624352,4.53461,2677.6,2677.1,4.52388]
[1727532624553,4.53461,2677.6,2677.1,8.25917]
[1727532625487,0.7999,2677.6,2677.2,3.7352]
[1727532626654,0.7999,2677.6,2677.1,4.52388]
[1727532626655,3.45080436,2677.6,2676.9,3.73558]
[1727532626894,6.10547355,2677.6,2677.1,3.73537]
[1727532627750,6.10547355,2677.6,2677.1,7.47067]
[1727532627991,4.53462,2677.6,2677.1,3.7353]
[1727532628155,4.53462,2677.6,2677.2,3.73524]
[1727532631496,0.7999,2677.6,2677.2,3.73524]
[1727532632002,0.10747478,2677.5,2677.2,3.73518]
[1727532632168,0.10747478,2677.5,2677.2,3.73516]
[1727532632371,0.10747478,2677.5,2677.2,3.73514]
[1727532632681,0.10747478,2677.5,2677.2,4.53974]
[1727532632998,4.88789292,2677.7,2677.2,4.53974]
[1727532633208,0.10743775,2677.4,2677.2,8.2749]
[1727532633500,0.10916585,2677.3,2677.2,4.53974]
[1727532633679,4.88789292,2677.7,2677.2,4.53974]
[1727532633881,0.10915845,2677.6,2677.2,4.53974]
[1727532635258,0.10915845,2677.6,2677.0,3.73542]
[1727532635259,0.10915845,2677.6,2677.1,3.73538]
[1727532635459,3.73494,2677.5,2677.0,4.54002]
[1727532635803,3.84414326,2677.4,2676.9,3.73559]
[1727532635962,0.7621,2677.3,2676.9,3.73559]
[1727532636532,0.7621,2677.3,2677.0,3.7355]
[1727532636875,0.10917326,2677.2,2677.0,3.7355]
[1727532637084,0.7621,2677.3,2677.0,3.7355]
[1727532637282,0.10917326,2677.2,2677.0,3.7355]
[1727532637508,0.7621,2677.3,2677.0,3.7355]
[1727532637710,0.10917326,2677.1,2677.0,3.7355]
[1727532637925,5.62252554,2677.5,2677.0,7.47094]
[1727532638219,0.1090695,2677.1,2677.0,3.73544]
[1727532638421,5.62252554,2677.5,2677.0,3.73544]
[1727532638724,5.62252554,2677.5,2677.1,3.73528]
[1727532638725,0.7917,2677.5,2677.1,3.73528]
[1727532638920,0.1090695,2677.4,2677.1,3.73528]
[1727532641032,0.1090695,2677.4,2677.2,4.53354]
[1727532641383,4.91740292,2677.7,2677.2,4.53354]
[1727532641579,0.10906952,2677.3,2677.2,4.53354]
[1727532641824,4.91744292,2677.7,2677.2,0.7983]
[1727532641989,0.10906952,2677.3,2677.2,4.53345]
[1727532642192,1.18284292,2677.7,2677.3,3.73509]
[1727532642923,0.39114292,2677.7,2677.3,3.73509]
[1727532643132,0.39114292,2677.7,2677.3,3.73502]
[1727532644004,0.39114292,2677.7,2677.4,3.73494]
[1727532645620,0.39114292,2677.7,2677.3,3.73502]
[1727532645806,1.03688957,2677.7,2677.3,3.73506]
[1727532646004,1.03688957,2677.7,2677.4,3.73495]
[1727532646005,0.39114292,2677.7,2677.4,3.73495]
[1727532647549,0.39114292,2677.7,2677.2,4.53346]
[1727532647849,0.39114292,2677.7,2677.0,3.73543]
[1727532647850,0.761,2677.6,2677.0,4.51993]
[1727532648049,0.39114292,2677.7,2677.2,3.73516]
[1727532648342,0.39114292,2677.7,2677.3,3.73504]
[1727532648716,1.03688857,2677.7,2677.0,4.51992]
[1727532648944,1.03688857,2677.7,2677.1,1.00380004]
[1727532648945,3.73483,2677.5,2677.1,1.00380004]
[1727532649243,0.761,2677.4,2677.0,4.51992]
[1727532649442,0.761,2677.4,2677.1,3.73532]
[1727532649443,0.86833401,2677.4,2677.1,3.73532]
[1727532649942,0.86833401,2677.4,2677.0,4.51992]
[1727532651556,0.86833401,2677.4,2677.0,8.25536]
[1727532651963,0.10733401,2677.4,2677.1,3.73537]
[1727532652730,4.49571,2677.6,2677.1,3.73537]
[1727532652927,0.10733401,2677.3,2677.1,3.73537]
[1727532653127,4.49571,2677.6,2677.1,3.73537]
[1727532653429,5.71494465,2677.6,2677.1,3.73537]
[1727532653640,0.10733401,2677.5,2677.1,3.73537]
[1727532654521,0.10733401,2677.5,2677.2,3.73522]
[1727532654950,0.10733401,2677.5,2677.3,3.7351]
[1727532656367,0.10733401,2677.5,2677.2,3.73515]
[1727532656527,0.10733401,2677.5,2677.1,3.73531]
[1727532656727,0.10733401,2677.5,2677.2,3.73517]
[1727532657971,0.10733401,2677.5,2677.1,3.73531]
[1727532658136,0.10733401,2677.5,2677.1,7.47059]
[1727532658464,0.10733401,2677.5,2677.1,3.73528]
[1727532658853,0.10733401,2677.5,2677.1,7.47054]
[1727532659024,0.10733401,2677.5,2677.1,3.73526]
[1727532659230,0.10733401,2677.5,2677.1,7.47055]
[1727532659676,0.10733401,2677.5,2677.2,3.73522]
[1727532660360,0.10733401,2677.5,2677.1,3.73526]
[1727532660559,3.84216401,2677.5,2677.1,3.73526]
[1727532660735,3.84216401,2677.5,2677.2,3.73523]
[1727532660736,0.10733401,2677.5,2677.2,3.73523]
[1727532661679,0.10733401,2677.5,2677.3,3.73508]
[1727532662027,0.10733401,2677.5,2677.2,3.73523]
[1727532663128,0.10733401,2677.5,2677.1,3.73529]
[1727532663426,0.10733401,2677.5,2677.2,3.73523]
[1727532664408,0.10733401,2677.5,2677.2,3.73514]
[1727532664616,0.10733401,2677.5,2677.3,3.73509]
[1727532664919,0.39114292,2677.7,2677.5,3.73481]
[1727532665119,0.10743034,2677.6,2677.5,3.73481]
[1727532665422,0.10743034,2677.6,2677.4,0.7985]
[1727532665624,0.10743034,2677.6,2677.4,4.53337]
[1727532666345,0.10743034,2677.6,2677.5,3.73482]
[1727532666819,0.39114292,2677.7,2677.5,3.73482]
[1727532666976,0.39114292,2677.7,2677.6,3.73468]
[1727532667773,0.49845292,2677.7,2677.6,3.73468]
[1727532677776,0.49845292,2677.7,2677.6,5.30553355]
[1727532677777,0.10731,2677.7,2677.6,5.30553355]
[1727532678041,0.10731,2677.7,2677.6,6.28941791]
[1727532678255,0.39113281,2678.0,2677.7,3.73446]
[1727532680426,0.39113281,2678.0,2677.8,3.7344]
[1727532680610,0.39113281,2678.0,2677.8,4.57969644]
[1727532682648,0.39113281,2678.0,2677.9,4.54436]
[1727532683210,0.39113281,2678.0,2677.9,7.54436]
[1727532683413,0.005,2678.3,2678.2,3.73385]
[1727532687157,0.005,2678.3,2678.2,4.54395]
[1727532687358,0.005,2678.3,2678.2,5.52882736]
[1727532688116,0.005,2678.3,2678.2,0.98487736]
[1727532688320,0.005,2678.3,2678.1,3.73387]
[1727532690521,0.005,2678.3,2678.2,3.73385]
[1727532691526,0.005,2678.3,2678.1,3.73387]
[1727532691724,0.005,2678.3,2678.1,7.46778]
[1727532692156,0.005,2678.3,2678.2,3.73385]
[1727532693299,0.005,2678.3,2678.2,4.480622]
[1727532695871,0.005,2678.3,2678.2,3.73385]
[1727532697867,0.11224032,2678.3,2678.2,4.54115]
[1727532698066,0.11224032,2678.3,2678.2,3.73385]
[1727532700110,0.39107672,2678.7,2678.6,3.73329]
[1727532700280,0.49139007,2678.7,2678.6,4.54059]
[1727532700485,0.39107672,2678.7,2678.6,4.54059]
[1727532701406,0.49139007,2678.7,2678.6,4.54059]
[1727532701593,0.49139007,2678.7,2678.6,5.367991]
[1727532702027,0.39107672,2678.7,2678.6,5.367991]
[1727532704411,0.39107672,2678.7,2678.6,1.634701]
[1727532704759,0.39107672,2678.7,2678.6,0.827401]
[1727532705043,0.39107672,2678.7,2678.5,3.73333]
[1727532705258,0.49182017,2678.7,2678.5,3.73333]
[1727532706035,0.49182017,2678.7,2678.5,7.46667]
[1727532706607,0.49182017,2678.7,2678.5,3.73333]
[1727532706947,0.49182017,2678.7,2678.5,7.46668]
[1727532707121,0.49182017,2678.7,2678.6,0.746668]
[1727532707316,0.49182017,2678.7,2678.5,3.73333]
[1727532708216,0.49182017,2678.7,2678.3,4.901915]
[1727532708420,0.49182017,2678.7,2678.5,3.73342]
[1727532710630,0.49182017,2678.7,2678.3,1.168285]
[1727532710852,0.49182017,2678.7,2678.4,4.30740386]
[1727532712467,0.49182017,2678.7,2678.5,3.73341]
[1727532713153,0.49182017,2678.7,2678.3,4.901875]
[1727532713154,0.49182017,2678.7,2678.3,4.106975]
[1727532713461,0.49182017,2678.7,2678.3,0.373385]
[1727532713660,0.7843,2678.6,2678.3,4.107045]
[1727532714053,0.10074345,2678.5,2678.3,4.107045]
[1727532714254,0.10074345,2678.5,2678.3,4.107085]
[1727532714492,0.10074345,2678.5,2678.3,0.373385]
[1727532715323,0.10074345,2678.5,2678.3,4.107075]
[1727532716395,0.10074345,2678.5,2678.3,3.73369]
[1727532717390,0.10074345,2678.5,2678.1,3.73391]
[1727532719776,0.10074345,2678.5,2678.1,7.46782]
[1727532720025,0.10074345,2678.5,2678.1,3.73391]
[1727532720336,1.671597,2678.5,2677.9,4.52738]
[1727532720510,0.7843,2678.3,2678.0,3.73411]
[1727532721015,0.7843,2678.3,2677.9,7.46834]
[1727532721200,0.10079544,2678.2,2677.9,3.73416]
[1727532721412,0.10079544,2678.2,2678.0,3.7341]
[1727532721612,0.7843,2678.3,2678.0,3.7341]
[1727532721780,0.10079544,2678.1,2678.0,3.7341]
[1727532721979,0.7843,2678.3,2678.0,3.7341]
[1727532722222,0.10079544,2678.1,2678.0,3.7341]
[1727532722429,0.7843,2678.3,2678.0,3.7341]
[1727532722613,0.10079544,2678.1,2678.0,3.7341]
[1727532722811,0.7843,2678.3,2677.8,6.7344]
[1727532722812,0.7843,2678.3,2677.8,3.7344]
[1727532723059,1.57085355,2677.9,2677.3,0.7932]
[1727532723259,1.57085355,2677.9,2677.0,0.77564141]
[1727532723260,3.73491,2677.5,2677.0,0.7932]
[1727532723469,2.35515355,2677.4,2677.0,0.7932]
[1727532723632,2.35515355,2677.4,2676.8,4.52887]
[1727532723633,2.45567456,2677.4,2676.8,4.52887]
[1727532723831,2.45567456,2677.4,2676.9,0.50361852]
[1727532724029,6.19067456,2677.4,2676.9,0.50361852]
[1727532724243,1.57085355,2677.2,2676.7,0.50731522]
[1727532724477,2.45567456,2677.4,2676.7,0.50731522]
[1727532724632,0.09923008,2677.1,2676.9,3.73564]
[1727532724836,6.09014355,2677.4,2676.8,3.73571]
[1727532725139,3.73512,2677.3,2676.8,3.73571]
[1727532725458,0.09921524,2677.2,2676.8,4.56232721]
[1727532725646,0.09921524,2677.2,2676.8,3.73571]
[1727532725847,4.51927,2677.4,2676.8,3.73571]
[1727532726060,0.09921524,2677.1,2676.8,3.73571]
[1727532726266,4.51927,2677.4,2676.8,3.73571]
[1727532726542,3.73539,2677.1,2676.7,0.50731522]
[1727532726760,0.09897771,2677.0,2676.7,0.50731522]
[1727532727461,0.09897771,2677.0,2676.8,0.07471236]
[1727532727768,0.7843,2677.3,2676.8,3.81041236]
[1727532727988,0.09894802,2677.2,2676.8,3.81041236]
[1727532728172,0.09894802,2677.2,2676.8,4.69510112]
[1727532728472,0.7843,2677.3,2676.8,4.69510112]
[1727532728647,0.09894802,2677.1,2676.8,4.69510112]
[1727532728842,4.51941,2677.3,2676.8,0.95940112]
[1727532729069,4.51941,2677.3,2676.8,0.07471236]
[1727532729070,0.09894802,2677.0,2676.8,0.07471236]
[1727532729404,0.09894802,2676.9,2676.7,0.50731522]
[1727532729883,3.73527,2677.2,2676.7,0.50731522]
[1727532730070,0.09894802,2676.8,2676.7,0.50731522]
[1727532730241,3.7354,2677.1,2676.7,0.50731522]
[1727532730439,0.09894802,2676.8,2676.7,0.50731522]
[1727532730664,3.7354,2677.1,2676.7,0.50731522]
[1727532731145,0.09894802,2677.0,2676.7,0.50731522]
[1727532732547,0.09894802,2677.0,2676.8,0.07471233]
[1727532732856,4.51945,2677.3,2676.8,0.07471233]
[1727532733051,0.09894802,2676.9,2676.8,0.07471233]
[1727532733244,3.73529,2677.2,2676.8,0.07471233]
[1727532733443,0.09894802,2676.9,2676.8,0.07471233]
[1727532733946,4.51945,2677.3,2676.8,0.07471233]
[1727532734146,0.09894802,2677.2,2676.8,0.07471233]
[1727532734491,4.51945,2677.3,2676.8,0.07471233]
[1727532734690,0.09894802,2677.1,2676.8,0.07471233]
[1727532734859,4.51945,2677.3,2676.8,0.07471233]
[1727532735064,0.09894802,2677.0,2676.8,0.07471233]
[1727532735254,4.51945,2677.3,2676.8,0.07471233]
[1727532735456,0.09894802,2676.9,2676.8,3.81051233]
[1727532735655,4.51945,2677.3,2676.8,0.88008009]
[1727532735892,0.09894802,2676.9,2676.8,3.81048233]
[1727532736341,4.51945,2677.3,2676.8,3.81048233]
[1727532736547,0.09894802,2677.2,2676.8,3.81048233]
[1727532736789,4.51945,2677.3,2676.8,3.81048233]
[1727532736993,0.09894802,2677.2,2676.8,3.81048233]
[1727532737188,8.25463,2677.3,2676.8,3.81048233]
[1727532737390,0.09894802,2677.2,2676.8,3.81048233]
[1727532737548,4.51945,2677.3,2676.8,3.81048233]
[1727532737752,0.09894802,2677.2,2676.8,3.81048233]
[1727532738175,8.25463,2677.3,2676.8,3.81048233]
[1727532738505,0.09858429,2677.2,2676.8,3.81048233]
[1727532738814,0.3911931,2677.2,2676.8,3.81048233]
[1727532739009,0.09858429,2677.1,2676.8,3.81048233]
[1727532739570,0.09858429,2677.1,2676.8,0.07471233]
[1727532740121,0.09858429,2677.1,2676.8,3.81049233]
[1727532740476,0.09858429,2677.1,2676.8,3.8104878]
[1727532742720,0.09858429,2677.1,2676.9,0.8037]
[1727532742901,0.09858429,2677.1,2676.9,0.87840506]
[1727532746401,0.09858429,2677.1,2676.9,4.53929]
[1727532748500,0.09858429,2677.1,2677.0,3.8102214]
[1727532748727,0.09858429,2677.1,2677.0,4.53922]
[1727532749025,0.39116124,2677.6,2677.1,0.8037]
[1727532749179,0.39116124,2677.6,2677.3,3.73507]
[1727532749380,0.09854716,2677.5,2677.3,3.73507]
[1727532749724,0.09854716,2677.5,2677.3,4.562479]
[1727532750024,0.09854716,2677.5,2677.3,0.827409]
[1727532750789,0.09854716,2677.5,2677.3,4.562509]
[1727532753334,0.09854716,2677.5,2677.3,3.7351]
[1727532753838,0.09854716,2677.5,2677.3,7.47013]
[1727532754329,0.09854716,2677.5,2677.3,3.73503]
[1727532754709,0.09854716,2677.5,2677.4,3.73496]
[1727532756032,0.09854716,2677.5,2677.3,3.73503]
[1727532756331,0.09854716,2677.5,2677.3,8.297455]
[1727532756542,0.09854716,2677.5,2677.3,4.562425]
[1727532757034,0.09854716,2677.5,2677.3,8.297445]
[1727532757239,0.09854716,2677.5,2677.4,3.73496]
[1727532757401,0.09854716,2677.5,2677.4,3.80965089]
[1727532757601,0.09854716,2677.5,2677.4,3.73496]
[1727532758337,0.09854716,2677.5,2677.4,3.80965084]
[1727532759845,0.09854716,2677.5,2677.4,3.73496]
[1727532782511,0.09854716,2677.5,2677.4,3.80965117]
[1727532783368,0.09854716,2677.5,2677.4,3.73496]
[1727532783573,0.09854716,2677.5,2677.4,3.8096508]
[1727532783774,0.09854716,2677.5,2677.4,3.73496]
[1727532784806,0.09854716,2677.5,2677.4,3.80965032]
[1727532785005,0.09854716,2677.5,2677.4,3.73496]
[1727532785807,0.09854716,2677.5,2677.4,5.233064]
[1727532786108,0.39116124,2677.6,2677.5,3.73482]
[1727532786622,0.48703217,2677.6,2677.5,3.73482]
[1727532790106,0.48703217,2677.6,2677.5,4.81245467]
[1727532790327,0.09587093,2677.6,2677.5,10.6535554]
[1727532790567,0.39110109,2678.0,2677.9,3.73414]
[1727532790914,0.48705366,2678.0,2677.9,3.73426]
[1727532791105,0.48705366,2678.0,2677.8,4.48549]
[1727532791308,0.48705366,2678.0,2677.7,3.73452]
[1727532792731,0.7768,2677.9,2677.6,3.73468]
[1727532793154,0.09610841,2677.8,2677.6,3.73468]
[1727532793855,0.09610841,2677.8,2677.6,3.7346]
[1727532794650,0.09610841,2677.8,2677.6,7.46918]
[1727532794955,0.09610841,2677.8,2677.6,8.44347254]
[1727532795137,0.09610841,2677.8,2677.7,3.73454]
[1727532795842,0.39110109,2678.0,2677.8,3.73438]
[1727532796029,0.39110109,2678.0,2677.8,0.84432525]
[1727532796227,0.39110109,2678.0,2677.7,3.73454]
[1727532800628,0.39110109,2678.0,2677.8,3.73438]
[1727532801867,0.39110109,2678.0,2677.6,3.73458]
[1727532802022,0.39110109,2678.0,2677.7,3.73451]
[1727532802852,0.09315713,2677.9,2677.7,3.73451]
[1727532803745,0.7768,2677.8,2677.4,3.73487]
[1727532804057,2.73875464,2678.0,2677.5,3.73473]
[1727532804229,0.09315713,2677.9,2677.5,3.73473]
[1727532805359,0.09315713,2677.9,2677.3,3.73506]
[1727532805360,1.57085355,2677.6,2677.3,3.73506]
[1727532805517,6.08208355,2677.8,2677.3,3.73506]
[1727532805719,0.09314229,2677.5,2677.3,3.73506]
[1727532805920,6.08208355,2677.8,2677.3,3.73506]
[1727532806239,0.3911354,2677.7,2677.3,3.73506]
[1727532806434,0.09314229,2677.6,2677.3,3.73506]
[1727532807022,0.09314229,2677.6,2677.2,8.27321]
[1727532807320,0.09314229,2677.6,2677.2,4.53805]
[1727532807726,0.09314229,2677.6,2677.3,3.73502]
[1727532810636,0.09314229,2677.6,2677.2,0.8029]
[1727532810637,1.66399584,2677.6,2677.2,0.8029]
[1727532810836,1.66399584,2677.6,2677.3,3.73509]
[1727532811077,1.57085355,2677.6,2677.3,3.73509]
[1727532811450,0.09314229,2677.5,2677.3,3.73509]
[1727532812372,0.09314229,2677.5,2677.2,7.47032]
[1727532812674,0.86994229,2677.5,2677.3,3.73506]
[1727532815289,0.86994229,2677.5,2677.2,3.73513]
[1727532816088,0.86994229,2677.5,2677.3,3.73503]
[1727532816382,0.86994229,2677.5,2677.2,3.73513]
[1727532816551,1.57085355,2677.4,2677.1,3.73534]
[1727532816941,0.0926525,2677.3,2677.1,3.73534]
[1727532817146,1.57085355,2677.4,2677.1,3.73534]
[1727532817459,0.0926525,2677.3,2677.1,3.73534]
[1727532817658,0.0926525,2677.3,2677.1,3.7353]
[1727532817859,0.0926525,2677.3,2677.2,3.73524]
[1727532818063,0.7768,2677.5,2677.2,3.73524]
[1727532818261,0.0926525,2677.4,2677.2,3.73524]
[1727532819344,0.0926525,2677.4,2677.3,3.7351]
[1727532819893,1.1589354,2677.7,2677.4,3.73493]
[1727532820093,1.1589354,2677.7,2677.4,7.46986]
[1727532820248,1.1589354,2677.7,2677.4,3.73493]
[1727532823088,0.3911354,2677.7,2677.6,3.73468]
[1727532823252,0.7678,2678.0,2677.7,3.73445]
[1727532823591,0.3911061,2678.1,2677.7,3.73445]
[1727532823754,0.3911061,2678.1,2677.9,3.73425]
[1727532825351,0.3911061,2678.1,2677.9,3.73417]
[1727532827491,0.3911061,2678.1,2677.9,4.55967]
[1727532832501,0.3911061,2678.1,2677.9,3.73417]
[1727532832809,0.08957179,2678.0,2677.9,3.73417]
[1727532836399,0.08957179,2678.0,2677.8,3.7344]
[1727532836585,0.08957179,2678.0,2677.7,0.8255]
[1727532837204,0.86267179,2678.0,2677.7,3.73452]
[1727532837763,0.86267179,2678.0,2677.5,8.25194]
[1727532838294,0.86267179,2678.0,2677.5,4.51721]
[1727532838502,1.89192093,2678.0,2677.5,8.25195]
[1727532840417,1.89192093,2678.0,2677.2,8.22564141]
[1727532840418,0.08957179,2678.0,2677.9,3.73426]
[1727532840561,0.08957179,2678.0,2677.9,5.37978295]
[1727532840768,0.7542,2678.6,2678.1,3.73391]
[1727532841065,0.09015896,2678.5,2678.2,3.80844913]
[1727532841265,0.09015896,2678.5,2678.1,3.73391]
[1727532842670,5.39444251,2678.5,2677.9,3.73416]
[1727532842914,0.7542,2678.3,2677.9,3.73416]
[1727532843095,0.7542,2678.3,2677.9,7.46835]
[1727532843322,0.7542,2678.3,2677.6,0.8072]
[1727532843323,2.32505355,2678.3,2677.6,0.8072]
[1727532843507,2.32505355,2678.3,2677.7,3.73447]
[1727532843508,1.57085355,2678.1,2677.7,3.73447]
[1727532843707,0.75790386,2678.2,2677.8,3.7344]
[1727532843909,0.66748484,2678.2,2677.8,3.7344]
[1727532844109,0.76304386,2678.1,2677.8,3.7344]
[1727532844728,0.09041902,2678.1,2677.9,3.73423]
[1727532844941,0.09041902,2678.1,2677.7,3.73447]
[1727532845227,2.32505355,2678.3,2677.8,3.73439]
[1727532845228,6.05877355,2678.3,2677.8,3.73439]
[1727532845396,0.09041902,2678.0,2677.8,3.73439]
[1727532845596,6.72624339,2678.3,2677.8,3.73439]
[1727532845820,0.84461902,2677.9,2677.5,7.46951]
[1727532846021,2.32505355,2677.9,2677.5,3.73475]
[1727532846335,0.09041902,2677.8,2677.5,7.46947]
[1727532846529,0.09041902,2677.8,2677.5,3.73472]
[1727532847800,0.09041902,2677.8,2677.4,3.73495]
[1727532848097,0.7542,2677.7,2677.2,0.8072]
[1727532848322,0.7542,2677.7,2677.4,3.73494]
[1727532848497,0.09041902,2677.6,2677.4,3.73494]
[1727532849638,0.09041902,2677.6,2677.3,3.73502]
[1727532850449,0.09041902,2677.6,2677.3,3.73503]
[1727532850603,0.09041902,2677.6,2677.3,7.47005]
[1727532850805,0.09041902,2677.6,2677.4,3.73496]
[1727532851017,0.09041902,2677.6,2677.3,3.73502]
[1727532851217,0.09041902,2677.6,2677.3,7.47004]
[1727532851414,0.09041902,2677.6,2677.3,3.73502]
[1727532852122,0.09041902,2677.6,2677.4,3.7349]
[1727532853732,0.09041902,2677.6,2677.2,8.27751]
[1727532854039,0.09041902,2677.6,2677.3,3.7351]
[1727532854238,0.09041902,2677.6,2677.3,3.73508]
[1727532854636,0.09041902,2677.6,2677.2,8.27747]
[1727532854824,0.09041902,2677.6,2677.3,3.73505]
[1727532855455,0.09041902,2677.6,2677.2,4.5423]
[1727532855650,0.09041902,2677.6,2677.3,3.73508]
[1727532856220,0.391128,2677.5,2677.2,4.5423]
[1727532856631,0.391128,2677.5,2677.3,3.73509]
[1727532856840,0.09026296,2677.4,2677.3,3.73509]
[1727532857030,0.09026296,2677.4,2677.3,3.7351]
[1727532858216,0.09026296,2677.4,2677.2,4.54241]
[1727532859844,0.391128,2677.5,2677.2,4.54241]
[1727532860029,0.09016632,2677.3,2677.2,4.54241]
[1727532860230,0.391128,2677.5,2677.3,3.7351]
[1727532860753,0.391128,2677.5,2677.2,0.8072]
[1727532860754,0.391128,2677.5,2677.2,4.54242]
[1727532860960,0.412946,2677.5,2677.2,4.54242]
[1727532861129,0.412946,2677.5,2677.2,0.8072]
[1727532861325,0.412946,2677.5,2677.3,3.73507]
[1727532862651,0.412946,2677.5,2677.2,0.8072]
[1727532862869,0.08715756,2677.4,2677.2,0.8072]
[1727532863084,0.08715756,2677.4,2677.2,4.54237]
[1727532868309,0.08715756,2677.4,2677.2,0.8072]
[1727532868758,0.08715756,2677.4,2677.1,3.73532]
[1727532869186,0.08715756,2677.4,2677.2,3.73523]